bitfinex/quotes_SOLUSD_20220216
["timestamp","ask_amount","ask_price","bid_price","bid_amount"]
[1645040733243,41.69764941,102.49,102.47,0.10882952]
[1645040734242,0.25,102.5,102.47,0.10882952]
[1645040734447,14.8936,102.5,102.47,0.10882952]
[1645040734848,0.25,102.5,102.47,0.10882952]
[1645040735246,93.44997007,102.53,102.47,0.10882952]
[1645040735447,16.17597235,102.57,102.47,0.10882952]
[1645040735644,124.90540377,102.6,102.47,2.25466319]
[1645040735645,115.4635668,102.6,102.47,2.25466319]
[1645040735846,16.09327235,102.6,102.48,11.71]
[1645040736045,16.09327235,102.6,102.48,110.14882952]
[1645040736046,14.7306,102.6,102.48,110.14882952]
[1645040736244,14.7306,102.6,102.49,2.14583367]
[1645040736447,50.22287254,102.59,102.49,39.09035045]
[1645040736645,210.18554489,102.59,102.49,39.09035045]
[1645040736846,2.54112404,102.58,102.49,39.09035045]
[1645040737047,36.36161838,102.57,102.49,39.19917997]
[1645040737551,36.36161838,102.57,102.49,0.10882952]
[1645040738248,14.6364,102.56,102.49,0.10882952]
[1645040738655,36.36161838,102.57,102.49,0.10882952]
[1645040739849,36.36161838,102.57,102.49,14.74212952]
[1645040740053,0.25,102.56,102.5,42.71089364]
[1645040741053,0.25,102.56,102.5,42.81972316]
[1645040741452,0.25,102.56,102.5,57.45162316]
[1645040742275,14.6314,102.58,102.5,155.78162316]
[1645040742453,1.36267235,102.6,102.51,2.14583367]
[1645040742656,46.00260738,102.6,102.53,14.627]
[1645040742854,46.00260738,102.6,102.54,42.68233689]
[1645040743054,46.00260738,102.6,102.54,42.93233689]
[1645040743553,1.36267235,102.63,102.54,141.26233689]
[1645040743754,1.36267235,102.63,102.54,155.88793689]
[1645040744055,1.36267235,102.64,102.54,158.03377056]
[1645040744256,1.36267235,102.65,102.54,169.74377056]
[1645040744455,1.36267235,102.64,102.54,169.74377056]
[1645040744657,38.63957033,102.64,102.54,169.74377056]
[1645040745158,38.63957033,102.64,102.54,167.59793689]
[1645040745457,37.27689798,102.64,102.54,167.59793689]
[1645040747646,36.63784936,102.73,102.63,52.22862254]
[1645040747843,36.63784936,102.73,102.64,11.71]
[1645040748044,36.63784936,102.73,102.65,39.36116704]
[1645040748544,17.14972404,102.77,102.65,39.36116704]
[1645040748545,2.54112404,102.77,102.65,39.36116704]
[1645040748745,22.6195,102.78,102.65,51.07116704]
[1645040748945,27.4875,102.78,102.65,51.07116704]
[1645040749548,34.24187241,102.77,102.65,149.40116704]
[1645040749979,34.24187241,102.77,102.65,67.82510071]
[1645040750572,34.24187241,102.77,102.65,166.15510071]
[1645040751873,34.24187241,102.77,102.65,183.42405181]
[1645040752074,4.868,102.82,102.65,198.80120012]
[1645040752374,4.868,102.83,102.67,151.37]
[1645040752573,4.868,102.83,102.71,14.5961]
[1645040752774,26.49781852,102.86,102.71,26.3061]
[1645040752971,58.7025088,102.85,102.72,43.24182552]
[1645040753172,11.71,102.84,102.72,43.24182552]
[1645040753377,4.864,102.83,102.69,11.71]
[1645040753571,18.9783562,102.83,102.69,11.71]
[1645040753772,25.8243562,102.83,102.68,2.14583367]
[1645040753972,18.9793562,102.82,102.68,2.14583367]
[1645040754172,26.3151,102.81,102.68,2.14583367]
[1645040754371,50.65541968,102.8,102.68,40.96040542]
[1645040754672,45.78941968,102.8,102.68,2.14583367]
[1645040755574,14.08375392,102.79,102.67,84.60971794]
[1645040755772,39.80723326,102.78,102.67,84.60971794]
[1645040755974,39.80723326,102.78,102.67,86.75555161]
[1645040756574,39.80723326,102.78,102.68,0.25]
[1645040758778,39.80723326,102.78,102.69,2.14583367]
[1645040758977,39.80723326,102.78,102.7,136.39785346]
[1645040759177,39.80723326,102.78,102.7,38.06785346]
[1645040760378,39.80723326,102.78,102.69,2.14583367]
[1645040760782,39.80723326,102.78,102.7,2.14583367]
[1645040761479,39.80723326,102.78,102.71,48.16589491]
[1645040762787,93.284,102.82,102.71,148.64172858]
[1645040762984,47.7411,102.83,102.72,104.33]
[1645040763183,49.7022,102.85,102.72,104.33]
[1645040763385,14.8576,102.85,102.73,2.14583367]
[1645040763782,39.92583651,102.84,102.74,40.58100121]
[1645040763984,39.92583651,102.84,102.74,138.91100121]
[1645040764184,39.92583651,102.84,102.75,2.14583367]
[1645040764383,39.92583651,102.84,102.76,38.03218884]
[1645040765690,39.92583651,102.84,102.77,98.33]
[1645040765893,39.92583651,102.84,102.78,48.27251338]
[1645040766089,39.92583651,102.84,102.77,100.47583367]
[1645040766690,39.92583651,102.84,102.77,2.14583367]
[1645040767088,39.92583651,102.84,102.78,137.72493431]
[1645040767288,39.92583651,102.84,102.78,39.39493431]
[1645040768290,39.92583651,102.84,102.77,2.14583367]
[1645040768492,39.92583651,102.84,102.75,110.04]
[1645040768890,39.92583651,102.84,102.76,2.14583367]
[1645040769390,39.92583651,102.84,102.76,35.70785721]
[1645040769791,39.92583651,102.84,102.77,0.25]
[1645040772996,0.23931852,102.86,102.77,0.25]
[1645040773192,0.23931852,102.86,102.78,2.14583367]
[1645040773396,0.23931852,102.86,102.78,100.47583367]
[1645040773893,0.23931852,102.86,102.78,13.85583367]
[1645040774100,0.23931852,102.86,102.79,48.16625929]
[1645040775096,0.23931852,102.86,102.79,146.49625929]
[1645040775297,0.23931852,102.86,102.79,148.64209296]
[1645040776108,0.23931852,102.86,102.79,163.23039296]
[1645040776897,0.23931852,102.86,102.79,174.94039296]
[1645040779601,0.23931852,102.86,102.79,76.61039296]
[1645040780099,0.23931852,102.86,102.79,59.87625929]
[1645040780501,0.23931852,102.86,102.79,62.02209296]
[1645040780902,0.23931852,102.86,102.79,160.35209296]
[1645040781308,0.23931852,102.86,102.8,0.25]
[1645040781503,0.23931852,102.86,102.81,40.58063683]
[1645040781700,0.23931852,102.86,102.81,42.7264705]
[1645040783002,0.23931852,102.86,102.81,40.58063683]
[1645040786031,0.23931852,102.86,102.81,153.49723683]
[1645040786231,0.23931852,102.86,102.81,155.6430705]
[1645040786437,0.00931852,102.86,102.82,112.35]
[1645040786833,0.00931852,102.86,102.83,2.14583367]
[1645040787033,0.00931852,102.86,102.85,98.33]
[1645040787236,0.00931852,102.86,102.85,126.9282]
[1645040787540,0.2464406,102.93,102.86,226.33]
[1645040787731,0.72507764,102.93,102.86,98.33]
[1645040787932,0.72507764,102.93,102.86,100.47583367]
[1645040788432,41.52014924,102.92,102.86,37.57844743]
[1645040788633,41.52014924,102.92,102.86,35.43261376]
[1645040788832,41.52014924,102.92,102.86,37.57844743]
[1645040790139,41.52014924,102.92,102.85,14.5801]
[1645040790536,41.99878628,102.92,102.85,16.72593367]
[1645040791139,41.99878628,102.92,102.86,46.1494262]
[1645040791341,41.99878628,102.92,102.86,46.3994262]
[1645040792738,0.47863704,102.92,102.86,159.3095262]
[1645040792941,0.47863704,102.92,102.87,2.14583367]
[1645040793139,0.47863704,102.92,102.88,98.33]
[1645040793537,0.47863704,102.92,102.89,2.14583367]
[1645040793739,0.47863704,102.92,102.9,40.83176993]
[1645040794644,0.2464406,102.93,102.9,40.83176993]
[1645040794842,0.2464406,102.93,102.9,55.40606993]
[1645040795842,0.2464406,102.93,102.91,2.14583367]
[1645040796044,0.2464406,102.93,102.91,14.5732]
[1645040796745,0.2464406,102.93,102.92,35.54247155]
[1645040797344,0.2464406,102.93,102.91,14.5732]
[1645040797543,3.27864057,102.93,102.87,14.02]
[1645040797744,3.27864057,102.93,102.86,14.02]
[1645040798346,43.25007289,102.93,102.87,42.65682785]
[1645040798744,3.27864057,102.93,102.87,42.65682785]
[1645040798948,3.27864057,102.93,102.87,140.98682785]
[1645040799144,3.27864057,102.93,102.88,112.35]
[1645040799445,3.27864057,102.93,102.89,0.25]
[1645040799643,0.2464406,102.93,102.89,2.39583367]
[1645040799852,0.2464406,102.93,102.9,42.4206233]
[1645040800946,0.2464406,102.93,102.9,44.56645697]
[1645040801347,0.2464406,102.93,102.9,42.4206233]
[1645040801549,0.2464406,102.93,102.9,2.14583367]
[1645040801846,0.2464406,102.93,102.89,14.5762]
[1645040802049,3.03219997,102.92,102.87,32.19256255]
[1645040802649,3.03219997,102.92,102.88,44.01905686]
[1645040802847,3.03219997,102.92,102.88,58.59675686]
[1645040803250,0.2464406,102.93,102.89,100.47583367]
[1645040803649,0.2464406,102.93,102.9,2.39583367]
[1645040803848,0.2464406,102.93,102.9,2.14583367]
[1645040804048,0.2464406,102.93,102.91,35.54986449]
[1645040804450,0.2464406,102.93,102.88,16.02672888]
[1645040805055,0.2464406,102.93,102.89,2.14583367]
[1645040805450,0.2464406,102.93,102.89,46.76554768]
[1645040805950,0.2464406,102.93,102.9,0.25]
[1645040807051,0.2464406,102.93,102.9,14.8251]
[1645040807552,0.2464406,102.93,102.91,38.19829835]
[1645040807953,3.3246022,102.96,102.92,220.33]
[1645040808153,0.56865288,102.94,102.92,100.47583367]
[1645040808352,0.56865288,102.94,102.93,2.14583367]
[1645040808553,0.58579288,102.96,102.93,2.14583367]
[1645040808958,0.58579288,102.96,102.94,38.30154815]
[1645040809457,0.58579288,102.96,102.95,2.14583367]
[1645040809958,0.73496634,102.97,102.96,0.58]
[1645040810160,3.51876998,103.01,102.95,2.14583367]
[1645040810360,3.51876998,103.01,102.96,100.47583367]
[1645040810361,0.8691758,102.98,102.96,100.47583367]
[1645040810556,0.5036362,103.0,102.97,90.0]
[1645040810758,0.5036362,103.0,102.96,39.86824167]
[1645040810956,0.5036362,103.0,102.97,2.14583367]
[1645040811156,0.5036362,103.0,102.98,47.83828838]
[1645040811861,0.77996066,103.01,102.99,90.0]
[1645040812058,0.40424924,103.01,102.98,148.31412205]
[1645040812259,0.40424924,103.01,102.99,14.5612]
[1645040812465,0.40424924,103.01,102.99,16.70703367]
[1645040815261,0.40424924,103.01,102.98,28.5837]
[1645040816163,0.40424924,103.01,102.96,37.4913]
[1645040816365,0.40424924,103.01,102.97,14.5651]
[1645040817874,0.39944792,103.01,102.97,14.5651]
[1645040818472,0.39944792,103.01,102.98,0.25]
[1645040819075,0.39944792,103.01,102.98,14.8136]
[1645040819782,0.39944792,103.01,102.98,16.95943367]
[1645040820679,0.39944792,103.01,102.98,115.28943367]
[1645040820877,0.39944792,103.01,102.98,113.1436]
[1645040821078,0.39944792,103.01,102.98,14.5636]
[1645040821280,0.39944792,103.01,102.96,52.0568]
[1645040822080,0.39944792,103.01,102.96,150.3868]
[1645040822579,0.39944792,103.01,102.97,0.25]
[1645040822784,0.39944792,103.01,102.98,14.5627]
[1645040823580,0.39944792,103.01,102.98,115.03853367]
[1645040823979,0.39944792,103.01,102.99,14.02]
[1645040824179,0.39944792,103.01,103.0,14.5602]
[1645040824381,0.39944792,103.01,103.0,16.70603367]
[1645040824993,0.39944792,103.01,102.99,14.02]
[1645040825496,0.39944792,103.01,102.99,16.16583367]
[1645040826895,0.39944792,103.01,102.99,30.72823367]
[1645040827096,3.03219997,103.0,102.95,2.14583367]
[1645040827397,3.03219997,103.0,102.91,16.02672888]
[1645040827598,3.03219997,103.0,102.92,98.33]
[1645040827896,3.43164789,103.0,102.95,40.26238119]
[1645040828296,3.43164789,103.0,102.95,54.82998119]
[1645040828700,0.39944792,103.0,102.95,167.17998119]
[1645040828998,2.08100324,103.04,102.97,98.33]
[1645040829200,2.08100324,103.04,102.99,98.33]
[1645040829399,2.08100324,103.04,103.0,39.33970855]
[1645040829598,2.08100324,103.04,103.01,14.559]
[1645040830400,0.83311288,103.06,103.04,0.52]
[1645040830602,0.83311288,103.06,103.04,40.17243013]
[1645040831500,0.83311288,103.06,103.0,24.82992246]
[1645040831699,0.83311288,103.06,103.01,28.5782]
[1645040832100,0.83311288,103.06,103.01,30.71842246]
[1645040832505,0.83311288,103.06,103.01,78.86437903]
[1645040833102,0.83311288,103.06,103.02,0.25]
[1645040833400,0.83311288,103.06,103.02,14.8075]
[1645040834703,34.94051864,103.05,103.02,14.8075]
[1645040835202,0.83311288,103.06,103.02,14.8075]
[1645040836103,0.4559251,103.1,103.03,128.0]
[1645040836303,0.4559251,103.1,103.04,160.97678043]
[1645040836505,0.4559251,103.1,103.06,98.33]
[1645040836703,0.4559251,103.1,103.07,157.78874537]
[1645040836902,0.4559251,103.1,103.08,14.02]
[1645040837304,0.4559251,103.1,103.09,2.14022246]
[1645040837503,0.4559251,103.1,103.09,16.68752246]
[1645040838106,1.41996168,103.11,103.09,115.01752246]
[1645040838309,1.41996168,103.11,103.1,131.94745533]
[1645040838508,1.41996168,103.11,103.1,148.63167779]
[1645040838906,1.05506524,103.12,103.1,148.63167779]
[1645040839309,1.05506524,103.12,103.11,2.14022246]
[1645040841910,1.05506524,103.12,103.1,14.544]
[1645040842108,3.03219997,103.11,103.1,14.544]
[1645040842508,1.05506524,103.12,103.1,14.544]
[1645040843113,1.05506524,103.12,103.11,0.25]
[1645040843712,4.08726521,103.12,103.08,129.03762246]
[1645040843912,4.08726521,103.12,103.1,0.25]
[1645040844112,4.08726521,103.12,103.07,14.02]
[1645040844711,4.08726521,103.12,103.07,16.16022246]
[1645040844912,52.548586,103.12,103.07,16.16022246]
[1645040846015,52.548586,103.12,103.05,2.14022246]
[1645040846214,55.08971004,103.12,103.02,114.14583999]
[1645040846415,55.08971004,103.12,103.02,160.9445385]
[1645040846714,52.548586,103.12,103.02,160.9445385]
[1645040847414,71.955486,103.12,103.02,175.5004385]
[1645040848014,71.955486,103.12,103.02,77.1704385]
[1645040848216,74.49661004,103.12,103.02,14.5559]
[1645040848418,67.104486,103.12,103.02,14.5559]
[1645040848622,14.27470353,103.11,103.02,14.5559]
[1645040849118,44.93027414,103.1,103.02,149.11170101]
[1645040850421,44.93027414,103.1,103.03,0.25]
[1645040850617,44.93027414,103.1,103.03,14.8056]
[1645040852427,44.93027414,103.1,103.03,16.94582246]
[1645040854727,44.93027414,103.1,103.03,62.82157251]
[1645040854929,44.93027414,103.1,103.03,76.84157251]
[1645040855127,44.93027414,103.1,103.03,175.17157251]
[1645040855326,44.93027414,103.1,103.03,190.9874125]
[1645040862652,44.93027414,103.1,103.03,190.7374125]
[1645040863455,44.93027414,103.1,103.03,46.53166245]
[1645040864256,44.93027414,103.1,103.02,14.5579]
[1645040864658,36.57025981,103.08,103.02,14.5579]
[1645040865056,36.57025981,103.08,103.03,2.14022246]
[1645040865459,36.57025981,103.08,103.01,2.14022246]
[1645040866260,1.37389087,103.06,103.01,2.14022246]
[1645040866458,40.54616656,103.05,103.02,14.5581]
[1645040866662,3.03219997,103.04,103.02,14.5581]
[1645040866859,3.03219997,103.04,103.03,2.14022246]
[1645040867358,3.03219997,103.04,103.03,2.39022246]
[1645040867758,40.54616656,103.05,103.03,2.39022246]
[1645040868359,3.03219997,103.04,103.03,2.39022246]
[1645040869161,3.03219997,103.04,103.01,16.69962246]
[1645040869359,4.40609084,103.04,103.01,2.14022246]
[1645040869760,1.37389087,103.03,102.98,63.52772246]
[1645040869958,44.89972189,103.03,102.98,63.52772246]
[1645040870161,43.52583102,103.03,102.98,63.52772246]
[1645040870563,44.89972189,103.03,102.98,16.16022246]
[1645040870762,44.89972189,103.03,102.99,0.25]
[1645040870961,44.89972189,103.03,102.99,14.8111]
[1645040872264,44.89972189,103.03,102.95,2.14022246]
[1645040872464,1.37389087,103.02,102.95,2.14022246]
[1645040872665,43.52583102,103.03,102.89,46.3061]
[1645040872666,1.37389087,103.01,102.89,46.3061]
[1645040872862,46.06695506,103.03,102.89,14.02]
[1645040872863,1.37389087,102.98,102.89,14.02]
[1645040873162,49.16313088,102.97,102.89,39.82910825]
[1645040873367,49.16313088,102.97,102.89,152.97494824]
[1645040873763,49.16313088,102.97,102.9,2.14022246]
[1645040873966,1.37389087,102.96,102.9,2.14022246]
[1645040874166,1.37389087,102.96,102.86,15.81583999]
[1645040874366,47.78924001,102.97,102.86,15.81583999]
[1645040874367,1.37389087,102.95,102.86,15.81583999]
[1645040874766,37.79283528,102.94,102.87,0.25]
[1645040874966,52.37363528,102.94,102.87,0.25]
[1645040875165,53.74752615,102.94,102.87,0.25]
[1645040875367,52.37363528,102.94,102.87,52.15019459]
[1645040875665,37.79283528,102.94,102.87,52.15019459]
[1645040875868,37.79283528,102.94,102.87,54.29041705]
[1645040876572,37.79283528,102.94,102.88,14.02]
[1645040876775,37.79283528,102.94,102.89,140.0518461]
[1645040876973,37.79283528,102.94,102.89,172.02790855]
[1645040877898,39.69079087,102.99,102.9,2.14022246]
[1645040878099,14.5744,102.98,102.9,16.71362246]
[1645040878702,47.82057338,102.97,102.91,36.3343546]
[1645040879101,23.5466,102.99,102.91,134.6643546]
[1645040879300,25.51119087,103.0,102.91,134.6643546]
[1645040879702,1.37389087,103.01,102.91,181.21311705]
[1645040879901,1.37389087,103.01,102.93,98.33]
[1645040880101,4.856,103.05,102.93,98.33]
[1645040880102,44.13117174,103.04,102.96,36.3343546]
[1645040880301,44.13117174,103.04,102.97,14.02]
[1645040880501,44.13117174,103.04,102.97,16.16022246]
[1645040880704,44.13117174,103.04,102.98,41.7218461]
[1645040881100,44.13117174,103.04,102.97,16.16022246]
[1645040881501,44.13117174,103.04,102.97,14.02]
[1645040881706,45.50506261,103.04,102.97,14.02]
[1645040881903,44.13117174,103.04,102.94,15.81583999]
[1645040882104,46.52870617,103.02,102.93,2.14022246]
[1645040882306,46.52870617,103.02,102.93,14.5702]
[1645040882504,47.90259704,103.02,102.91,24.2409]
[1645040882703,3.91501491,103.01,102.9,14.7704]
[1645040882908,1.37389087,103.0,102.89,37.0719]
[1645040883103,6.22989087,102.99,102.89,37.0719]
[1645040883304,38.89460367,102.98,102.89,82.49946383]
[1645040883604,53.46950367,102.98,102.89,51.6467]
[1645040883807,53.46950367,102.98,102.89,14.02]
[1645040884008,56.01062771,102.98,102.87,15.76658443]
[1645040884206,62.24151858,102.98,102.84,14.3878]
[1645040884406,22.7353,102.97,102.84,16.16022246]
[1645040884809,40.03908823,102.96,102.84,63.82883811]
[1645040885014,40.03908823,102.96,102.84,202.25362254]
[1645040885720,40.03908823,102.96,102.85,6.0]
[1645040885919,38.51707262,102.94,102.86,44.96768505]
[1645040886117,38.51707262,102.94,102.86,16.72032246]
[1645040887122,38.51707262,102.94,102.86,14.5801]
[1645040887921,53.09787262,102.94,102.86,14.5801]
[1645040888724,53.09787262,102.94,102.84,2.14022246]
[1645040890126,75.64587262,102.94,102.84,2.14022246]
[1645040891328,89.94597262,102.94,102.84,2.14022246]
[1645040891527,75.64587262,102.94,102.85,0.25]
[1645040892330,75.64587262,102.94,102.85,43.44989562]
[1645040893331,75.64587262,102.94,102.85,156.36139562]
[1645040893634,61.06507262,102.94,102.87,34.85630508]
[1645040894334,61.06507262,102.94,102.87,49.43520508]
[1645040894535,61.06507262,102.94,102.87,51.57542754]
[1645040895935,24.77529087,102.99,102.87,149.90542754]
[1645040896161,1.37389087,103.0,102.89,98.33]
[1645040896366,1.37389087,103.02,102.92,112.9007]
[1645040896560,1.37389087,103.02,102.93,11.68]
[1645040896761,25.55129087,103.03,102.93,11.68]
[1645040896962,25.55129087,103.03,102.94,37.55637911]
[1645040896963,35.07962953,103.01,102.94,37.55637911]
[1645040897160,35.07962953,103.01,102.94,39.69660157]
[1645040897463,35.07962953,103.01,102.95,2.14022246]
[1645040897665,35.07962953,103.01,102.92,27.44658443]
[1645040897864,35.07962953,103.01,102.92,11.68]
[1645040898060,35.07962953,103.01,102.93,2.14022246]
[1645040898463,35.07962953,103.01,102.93,40.85309862]
[1645040898661,35.07962953,103.01,102.93,55.42359862]
[1645040898861,35.07962953,103.01,102.95,39.34332454]
[1645040899261,35.07962953,103.01,102.95,2.14022246]
[1645040899463,35.07962953,103.01,102.9,36.5117]
[1645040899663,35.07962953,103.01,102.93,2.14022246]
[1645040900365,195.63464444,103.01,102.91,2.14022246]
[1645040900562,17.90989087,103.0,102.85,24.4526]
[1645040900762,64.42069087,103.0,102.86,6.0]
[1645040901063,14.5783,102.98,102.88,14.5775]
[1645040901269,143.06015943,102.97,102.86,27.44658443]
[1645040901464,65.18317434,102.97,102.85,43.31721098]
[1645040901662,62.6420503,102.97,102.87,34.73898972]
[1645040901862,57.7840503,102.97,102.85,8.14022246]
[1645040902063,227.62955943,102.97,102.85,8.14022246]
[1645040902265,235.02868347,102.97,102.83,17.90680689]
[1645040902464,235.02868347,102.97,102.8,34.3916]
[1645040902465,1.37389087,102.96,102.8,34.3916]
[1645040902661,74.85,102.95,102.79,29.58680689]
[1645040902863,37.75149868,102.94,102.81,2.14022246]
[1645040903066,49.43149868,102.94,102.82,35.33526731]
[1645040903471,2.54112404,102.93,102.82,35.33526731]
[1645040903668,41.73815826,102.92,102.82,35.33526731]
[1645040903866,56.32505826,102.92,102.82,49.92136731]
[1645040904469,41.73815826,102.92,102.82,150.39158977]
[1645040904665,41.73815826,102.92,102.83,11.68]
[1645040904866,41.73815826,102.92,102.85,141.05093339]
[1645040905068,41.73815826,102.92,102.86,14.5779]
[1645040905367,41.73815826,102.92,102.86,16.71812246]
[1645040905568,41.73815826,102.92,102.86,14.5779]
[1645040905766,46.3141,102.97,102.86,14.5779]
[1645040906166,47.68799087,102.97,102.86,14.5779]
[1645040906567,46.3141,102.97,102.86,14.5779]
[1645040906767,34.88616952,102.96,102.87,35.06890028]
[1645040906967,34.88616952,102.96,102.88,14.5769]
[1645040907168,34.88616952,102.96,102.89,40.90955785]
[1645040908171,34.88616952,102.96,102.89,14.5759]
[1645040908368,34.88616952,102.96,102.87,2.14022246]
[1645040908369,34.88616952,102.96,102.86,48.5873]
[1645040908567,37.42729356,102.96,102.86,48.5873]
[1645040908771,37.42729356,102.96,102.84,159.55092246]
[1645040908969,37.42729356,102.96,102.84,66.07992246]
[1645040909169,37.42729356,102.96,102.85,46.44791527]
[1645040909371,34.88616952,102.96,102.85,46.44791527]
[1645040909568,49.46656952,102.96,102.85,61.02871527]
[1645040910377,49.46656952,102.96,102.85,14.5808]
[1645040910574,50.84046039,102.96,102.85,14.5808]
[1645040910775,50.84046039,102.96,102.83,52.0259]
[1645040910776,11.68,102.95,102.83,52.0259]
[1645040910973,11.68,102.95,102.83,22.5495]
[1645040910974,26.2628,102.95,102.83,22.5495]
[1645040911173,27.63669087,102.95,102.83,22.5495]
[1645040911374,39.00472864,102.94,102.83,123.01972246]
[1645040911577,39.00472864,102.94,102.84,47.7022753]
[1645040912179,39.00472864,102.94,102.85,113.1616]
[1645040912376,39.00472864,102.94,102.86,30.3539254]
[1645040912578,39.00472864,102.94,102.86,32.49414786]
[1645040912982,39.00472864,102.94,102.86,2.14022246]
[1645040913978,39.00472864,102.94,102.86,39.96242143]
[1645040914382,39.00472864,102.94,102.85,14.582]
[1645040914582,39.00472864,102.94,102.83,22.5495]
[1645040914809,156.64,102.93,102.82,2.14022246]
[1645040914983,168.32,102.93,102.8,14.5881]
[1645040915185,2.54112404,102.92,102.8,14.5881]
[1645040915382,45.17895555,102.91,102.81,40.85533358]
[1645040915984,118.07685555,102.91,102.81,2.14022246]
[1645040916183,129.75685555,102.91,102.78,24.5097]
[1645040916387,4.861,102.9,102.78,24.5097]
[1645040916589,11.68,102.9,102.78,24.5097]
[1645040916984,46.78657506,102.89,102.79,35.84823329]
[1645040917186,46.78657506,102.89,102.79,140.17823329]
[1645040917384,46.78657506,102.89,102.8,115.43598085]
[1645040917585,46.78657506,102.89,102.81,140.25310157]
[1645040917786,46.78657506,102.89,102.81,157.10908242]
[1645040917987,46.78657506,102.89,102.82,2.14022246]
[1645040918186,46.78657506,102.89,102.83,50.71699913]
[1645040918586,46.78657506,102.89,102.84,2.14022246]
[1645040920585,46.78657506,102.89,102.84,48.97791054]
[1645040920786,73.3417,102.94,102.85,0.25]
[1645040920987,73.3417,102.94,102.85,2.39022246]
[1645040921189,1.37389087,102.95,102.86,2.14022246]
[1645040921397,1.37389087,102.96,102.86,2.14022246]
[1645040921587,16.00569087,102.97,102.86,2.14022246]
[1645040921787,47.39817331,102.96,102.87,31.21851262]
[1645040921987,16.00569087,102.97,102.87,31.21851262]
[1645040921988,1.37389087,102.97,102.87,155.80641262]
[1645040922189,1.37389087,102.98,102.88,2.14022246]
[1645040922399,1.37389087,102.98,102.89,98.33]
[1645040922589,1.37389087,102.98,102.89,110.01]
[1645040922788,1.37389087,102.99,102.9,2.14022246]
[1645040922989,35.31898222,102.98,102.9,144.46098975]
[1645040923388,35.31898222,102.98,102.91,2.14022246]
[1645040923691,35.31898222,102.98,102.92,34.06543341]
[1645040923891,1.37389087,103.0,102.92,48.63733341]
[1645040924091,48.87311221,103.03,102.92,149.10755587]
[1645040924092,1.37389087,103.01,102.92,149.10755587]
[1645040924292,1.37389087,103.02,102.92,160.78755587]
[1645040924489,1.37389087,103.04,102.92,177.18031617]
[1645040924691,1.37389087,103.05,102.92,182.18031617]
[1645040924893,1.37389087,103.05,102.97,14.5611]
[1645040924894,46.52532075,103.04,102.97,14.5611]
[1645040925089,46.52532075,103.04,102.98,42.07177285]
[1645040925291,46.52532075,103.04,102.98,44.21199531]
[1645040926193,46.52532075,103.04,102.99,2.14022246]
[1645040926393,46.52532075,103.04,102.99,16.70162246]
[1645040927395,1.37389087,103.07,103.0,35.20751783]
[1645040927593,14.5621,103.09,103.0,37.34774029]
[1645040927594,1.37389087,103.08,103.0,37.34774029]
[1645040927795,15.93599087,103.09,103.0,37.34774029]
[1645040928195,15.93599087,103.09,103.0,2.14022246]
[1645040928698,1.37389087,103.08,103.0,2.14022246]
[1645040929196,48.65067664,103.07,103.01,43.9024051]
[1645040929602,48.65067664,103.07,103.01,46.04262756]
[1645040930420,127.29639087,103.1,103.01,46.04262756]
[1645040930626,1.37389087,103.1,103.01,46.04262756]
[1645040930921,1.37389087,103.1,103.01,60.60122756]
[1645040931325,1.37389087,103.11,103.01,60.60122756]
[1645040931522,42.8828157,103.09,103.01,60.60122756]
[1645040932325,42.8828157,103.09,103.01,2.14022246]
[1645040932723,42.8828157,103.09,102.99,23.7202]
[1645040933726,42.8828157,103.09,103.0,38.67482027]
[1645040933928,42.8828157,103.09,103.0,2.14022246]
[1645040934229,103.73393974,103.09,103.0,2.14022246]
[1645040934426,105.10783061,103.09,102.95,11.68]
[1645040934628,1.37389087,103.08,102.95,11.68]
[1645040935026,47.21906393,103.07,102.96,35.57283528]
[1645040935225,47.21906393,103.07,102.96,61.81683528]
[1645040935427,47.21906393,103.07,102.97,0.25]
[1645040935927,47.21906393,103.07,102.97,2.39022246]
[1645040936630,47.21906393,103.07,102.98,38.60043821]
[1645040936926,47.21906393,103.07,102.98,53.16233821]
[1645040937428,47.21906393,103.07,102.98,14.5619]
[1645040938229,47.21906393,103.07,102.99,48.06155231]
[1645040938632,47.21906393,103.07,103.01,29.99464839]
[1645040940231,38.2442,103.11,103.01,29.99464839]
[1645040940430,23.6855,103.11,103.02,2.14022246]
[1645040940636,1.05506524,103.12,103.02,2.14022246]
[1645040941031,1.05506524,103.12,103.02,100.47022246]
[1645040941234,45.01436469,103.12,103.03,133.99224044]
[1645040941530,45.01436469,103.12,103.03,162.3672629]
[1645040941733,45.01436469,103.12,103.05,35.81393252]
[1645040942732,45.01436469,103.12,103.06,14.5511]
[1645040943734,45.01436469,103.12,103.03,60.1822]
[1645040943934,45.01436469,103.12,103.03,11.68]
[1645040944438,47.55548873,103.12,103.0,133.7356]